[Event "44th Chess Olympiad Women 2022"]
[Site "Chennai"]
[Date "2022.08.07"]
[Round "9.59"]
[White "Nosimilo, Mkhonto"]
[Black "Khantree, Napat"]
[Result "0-1"]
[WhiteElo "1313"]
[BlackElo "1362"]
[Annotator "NA RC"]
[PlyCount "58"]
[EventDate "2022.??.??"]
[TimeControl "60"]

1. e4 {[%emt 0:00:07]} e5 {[%emt 0:00:06]} 2. Nf3 {[%emt 0:00:33]} Nc6 {
[%emt 0:00:07]} 3. Bc4 {[%emt 0:00:12]} Bc5 {[%emt 0:00:09]} 4. c3 {[%emt 0:00:
00]} Nf6 {[%emt 0:00:05]} 5. d3 {[%emt 0:00:09]} d6 {[%emt 0:00:29]} 6. Bb3 {
[%emt 0:00:30]} Be6 {[%emt 0:03:56]} 7. Bc2 {[%emt 0:01:18]} h6 {[%emt 0:00:27]
} 8. h3 {[%emt 0:02:08]} Bb6 {[%emt 0:01:18]} 9. Nbd2 {[%emt 0:00:54]} Qe7 {
[%emt 0:00:34]} 10. Nf1 {[%emt 0:01:06]} a6 {[%emt 0:11:06]} 11. Be3 {[%emt 0:
00:00]} Bxe3 {[%emt 0:02:50]} 12. Nxe3 {[%emt 0:00:11]} O-O-O {[%emt 0:15:33]}
13. O-O {[%emt 0:29:10]} g5 {[%emt 0:01:00]} 14. d4 {[%emt 0:01:04]} exd4 {
[%emt 0:00:20]} 15. Nxd4 {[%emt 0:00:34]} Bd7 {[%emt 0:00:43]} 16. Nd5 {
[%emt 0:06:03]} Nxd5 {[%emt 0:01:56]} 17. exd5 {[%emt 0:00:09]} Ne5 {[%emt 0:
00:00]} 18. Bf5 {[%emt 0:04:49]} Bxf5 {[%emt 0:00:22]} 19. Nxf5 {[%emt 0:00:12]
} Qf6 {[%emt 0:00:03]} 20. Ne3 {[%emt 0:04:10]} h5 {[%emt 0:01:18]} 21. Qd4 {
[%emt 0:02:31]} g4 {[%emt 0:03:52]} 22. hxg4 {[%emt 0:07:41]} hxg4 {[%emt 0:00:
00]} 23. Nxg4 {[%emt 0:00:22]} Nxg4 {[%emt 0:00:16]} 24. Qxg4+ {[%emt 0:00:06]}
Kb8 {[%emt 0:00:06]} 25. f3 {[%emt 0:10:09]} Rdg8 {[%emt 0:00:09]} 26. Qd4 {
[%emt 0:01:59]} Qg5 {[%emt 0:00:38]} 27. Kf2 {[%emt 0:12:49]} Qxg2+ {[%emt 0:
00:00]} 28. Ke3 {[%emt 0:00:26]} Re8+ {[%emt 0:00:06]} 29. Kd3 {[%emt 0:00:48]}
Qe2# {[%emt 0:00:06]} 0-1

[Event "44th Chess Olympiad Women 2022"]
[Site "Chennai"]
[Date "2022.08.07"]
[Round "9.59"]
[White "Prommuang, Araya"]
[Black "Nkwanyane Nolwazi"]
[Result "0-1"]
[WhiteElo "1651"]
[BlackElo "1158"]
[Annotator "NA"]
[PlyCount "82"]
[EventDate "2022.??.??"]
[TimeControl "60"]

1. e4 {[%emt 0:00:04]} e5 {[%emt 0:00:08]} 2. Nf3 {[%emt 0:00:27]} Nc6 {
[%emt 0:00:10]} 3. Bb5 {[%emt 0:00:18]} a6 {[%emt 0:00:21]} 4. Ba4 {[%emt 0:00:
00]} Nf6 {[%emt 0:00:36]} 5. O-O {[%emt 0:00:30]} Be7 {[%emt 0:00:19]} 6. Re1 {
[%emt 0:02:14]} b5 {[%emt 0:00:10]} 7. Bb3 {[%emt 0:00:08]} O-O {[%emt 0:00:22]
} 8. c3 {[%emt 0:01:08]} d5 {[%emt 0:02:37]} 9. exd5 {[%emt 0:04:01]} Nxd5 {
[%emt 0:00:17]} 10. Nxe5 {[%emt 0:01:46]} Nxe5 {[%emt 0:00:22]} 11. Rxe5 {
[%emt 0:00:28]} c6 {[%emt 0:00:11]} 12. d4 {[%emt 0:01:39]} Bd6 {[%emt 0:00:35]
} 13. Re1 {[%emt 0:01:36]} Qh4 {[%emt 0:00:13]} 14. g3 {[%emt 0:00:59]} Qh3 {
[%emt 0:00:13]} 15. Qf3 {[%emt 0:13:00]} Bg4 {[%emt 0:05:06]} 16. Qg2 {[%emt 0:
00:00]} Qh5 {[%emt 0:01:01]} 17. h4 {[%emt 0:11:38]} Bf3 {[%emt 0:06:15]} 18.
Qh2 {[%emt 0:02:46]} f5 {[%emt 0:06:40]} 19. Nd2 {[%emt 0:11:28]} f4 {[%emt 0:
00:00]} 20. c4 {[%emt 0:10:07]} fxg3 {[%emt 0:35:08]} 21. fxg3 {[%emt 0:01:05]}
Qg4 {[%emt 0:03:27]} 22. Nf1 {[%emt 0:05:34]} bxc4 {[%emt 0:03:03]} 23. Bxc4 {
[%emt 0:00:27]} Qxd4+ {[%emt 0:00:13]} 24. Ne3 {[%emt 0:02:30]} Kh8 {[%emt 0:
00:00]} 25. Bxd5 {[%emt 0:04:45]} cxd5 {[%emt 0:00:11]} 26. Rf1 {[%emt 0:19:33]
} Bc5 {[%emt 0:00:32]} 27. Qd2 {[%emt 0:02:18]} Qg4 {[%emt 0:00:29]} 28. Kh2 {
[%emt 0:00:37]} Bxe3 {[%emt 0:00:50]} 29. Qxe3 {[%emt 0:00:18]} Rae8 {[%emt 0:
00:00]} 30. Qg1 {[%emt 0:01:04]} Re2+ {[%emt 0:00:17]} 31. Rf2 {[%emt 0:00:18]}
Rfe8 {[%emt 0:00:51]} 32. Be3 {[%emt 0:00:52]} R8xe3 {[%emt 0:00:19]} 33. Raf1
{[%emt 0:00:20]} Rxf2+ {[%emt 0:00:59]} 34. Rxf2 {[%emt 0:00:08]} d4 {[%emt 0:
00:00]} 35. Qc1 {[%emt 0:01:52]} Re2 {[%emt 0:01:08]} 36. Rxe2 {[%emt 0:00:42]}
Bxe2 {[%emt 0:00:02]} 37. Qc6 {[%emt 0:00:13]} h6 {[%emt 0:00:08]} 38. Qd5 {
[%emt 0:00:37]} d3 {[%emt 0:00:19]} 39. a3 {[%emt 0:00:42]} Bf1 {[%emt 0:01:47]
} 40. Kg1 {[%emt 0:00:33]} Qe2 {[%emt 0:03:05]} 41. Qc6 {[%emt 0:30:13]} Qg2+ {
[%emt 0:31:00]} 0-1

[Event "44th Chess Olympiad Women 2022"]
[Site "Chennai"]
[Date "2022.08.07"]
[Round "9.60"]
[White "Elshalom Essayas Berhane"]
[Black "Jonet, Davena"]
[Result "0-1"]
[WhiteElo "1481"]
[BlackElo "1458"]
[Annotator "NA"]
[PlyCount "88"]
[EventDate "2022.??.??"]
[TimeControl "60"]

1. d4 {[%emt 0:00:02]} d5 {[%emt 0:00:12]} 2. Nf3 {[%emt 0:00:15]} Nf6 {
[%emt 0:01:09]} 3. Bf4 {[%emt 0:00:14]} Bf5 {[%emt 0:01:16]} 4. e3 {[%emt 0:00:
00]} e6 {[%emt 0:01:49]} 5. a3 {[%emt 0:00:23]} Bd6 {[%emt 0:03:10]} 6. Bg3 {
[%emt 0:00:28]} a6 {[%emt 0:02:52]} 7. c4 {[%emt 0:00:38]} Bxg3 {[%emt 0:04:11]
} 8. hxg3 {[%emt 0:00:22]} c6 {[%emt 0:06:17]} 9. Nc3 {[%emt 0:02:47]} Qc7 {
[%emt 0:02:19]} 10. Rc1 {[%emt 0:05:18]} Nbd7 {[%emt 0:00:15]} 11. c5 {[%emt 0:
00:00]} e5 {[%emt 0:09:18]} 12. Be2 {[%emt 0:07:14]} h6 {[%emt 0:01:41]} 13. b4
{[%emt 0:03:57]} e4 {[%emt 0:01:15]} 14. Nd2 {[%emt 0:00:22]} Be6 {[%emt 0:00:
00]} 15. g4 {[%emt 0:03:53]} g5 {[%emt 0:02:28]} 16. Nf1 {[%emt 0:06:37]} Ng8 {
[%emt 0:01:21]} 17. f3 {[%emt 0:01:38]} f5 {[%emt 0:04:54]} 18. gxf5 {[%emt 0:
00:00]} Bxf5 {[%emt 0:00:54]} 19. g4 {[%emt 0:00:26]} exf3 {[%emt 0:04:36]} 20.
Bxf3 {[%emt 0:00:55]} Bg6 {[%emt 0:00:48]} 21. e4 {[%emt 0:04:21]} dxe4 {
[%emt 0:04:03]} 22. Bxe4 {[%emt 0:00:22]} Ne7 {[%emt 0:05:21]} 23. Qe2 {
[%emt 0:04:32]} O-O-O {[%emt 0:02:16]} 24. Bxg6 {[%emt 0:06:36]} Nxg6 {[%emt 0:
00:00]} 25. Ne4 {[%emt 0:00:07]} Qf4 {[%emt 0:01:26]} 26. Nd6+ {[%emt 0:01:16]}
Kb8 {[%emt 0:00:58]} 27. Rd1 {[%emt 0:03:11]} Nf6 {[%emt 0:00:56]} 28. Ne3 {
[%emt 0:02:46]} Ne4 {[%emt 0:04:28]} 29. Rh3 {[%emt 0:05:35]} Nc3 {[%emt 0:00:
00]} 30. Qg2 {[%emt 0:00:18]} Nxd1 {[%emt 0:02:53]} 31. Kxd1 {[%emt 0:06:22]}
Qxd4+ {[%emt 0:00:42]} 32. Kc2 {[%emt 0:01:16]} Ka7 {[%emt 0:07:27]} 33. Qf3 {
[%emt 0:07:35]} Rdf8 {[%emt 0:02:06]} 34. Nef5 {[%emt 0:01:00]} Qe5 {[%emt 0:
00:00]} 35. Qd3 {[%emt 0:06:09]} Nf4 {[%emt 0:01:12]} 36. Re3 {[%emt 0:01:08]}
Nxd3 {[%emt 0:00:29]} 37. Rxe5 {[%emt 0:00:43]} Nxe5 {[%emt 0:00:20]} 38. Kb3 {
[%emt 0:00:26]} Nxg4 {[%emt 0:01:23]} 39. Ka4 {[%emt 0:01:07]} h5 {[%emt 0:00:
00]} 40. Ka5 {[%emt 0:00:26]} h4 {[%emt 0:00:13]} 41. a4 {[%emt 0:30:52]} Ne5 {
[%emt 0:31:05]} 42. b5 {[%emt 0:00:46]} axb5 {[%emt 0:01:51]} 43. axb5 {
[%emt 0:00:26]} Nc4+ {[%emt 0:00:45]} 44. Nxc4 {[%emt 0:00:45]} Rxf5 {[%emt 0:
00:00]} 0-1

[Event "44th Chess Olympiad Women 2022"]
[Site "Chennai"]
[Date "2022.08.07"]
[Round "9.60"]
[White "Seine, Rose Berline"]
[Black "Makda Araya Fessehaye"]
[Result "1-0"]
[WhiteElo "1679"]
[BlackElo "1242"]
[Annotator "NA RC"]
[PlyCount "63"]
[EventDate "2022.??.??"]
[TimeControl "60"]

1. d4 {[%emt 0:00:13]} d5 {[%emt 0:00:25]} 2. c4 {[%emt 0:00:04]} e6 {[%emt 0:
00:00]} 3. Nc3 {[%emt 0:00:06]} Nf6 {[%emt 0:00:37]} 4. Bf4 {[%emt 0:00:05]}
Nbd7 {[%emt 0:02:20]} 5. Nf3 {[%emt 0:03:09]} Be7 {[%emt 0:01:45]} 6. Nb5 {
[%emt 0:00:11]} Bb4+ {[%emt 0:04:18]} 7. Nd2 {[%emt 0:00:31]} e5 {[%emt 0:00:
00]} 8. dxe5 {[%emt 0:04:56]} Nh5 {[%emt 0:02:28]} 9. Be3 {[%emt 0:02:36]} Nxe5
{[%emt 0:02:18]} 10. a3 {[%emt 0:03:36]} Ba5 {[%emt 0:01:43]} 11. b4 {[%emt 0:
00:00]} Bb6 {[%emt 0:00:54]} 12. c5 {[%emt 0:00:08]} c6 {[%emt 0:00:21]} 13.
Nd6+ {[%emt 0:00:13]} Kd7 {[%emt 0:06:28]} 14. Nxc8 {[%emt 0:00:12]} Rxc8 {
[%emt 0:00:57]} 15. cxb6 {[%emt 0:00:08]} axb6 {[%emt 0:00:09]} 16. Bd4 {
[%emt 0:00:25]} Re8 {[%emt 0:01:32]} 17. e3 {[%emt 0:00:25]} c5 {[%emt 0:01:00]
} 18. Bb5+ {[%emt 0:00:43]} Nc6 {[%emt 0:02:29]} 19. bxc5 {[%emt 0:00:20]} Qh4
{[%emt 0:07:56]} 20. O-O {[%emt 0:00:36]} bxc5 {[%emt 0:02:26]} 21. Bxc5 {
[%emt 0:00:21]} Re6 {[%emt 0:00:42]} 22. Nf3 {[%emt 0:00:21]} Qf6 {[%emt 0:00:
00]} 23. Qxd5+ {[%emt 0:00:49]} Kc7 {[%emt 0:03:13]} 24. Qxh5 {[%emt 0:00:57]}
Ne5 {[%emt 0:01:27]} 25. Bd4 {[%emt 0:01:12]} Nxf3+ {[%emt 0:01:47]} 26. Qxf3 {
[%emt 0:00:07]} Qg6 {[%emt 0:04:14]} 27. Rac1+ {[%emt 0:01:37]} Kb8 {[%emt 0:
00:00]} 28. Qf4+ {[%emt 0:00:21]} Rd6 {[%emt 0:05:27]} 29. Be5 {[%emt 0:00:17]}
Rcd8 {[%emt 0:00:41]} 30. Rfd1 {[%emt 0:00:07]} Ka7 {[%emt 0:05:24]} 31. Bxd6 {
[%emt 0:05:07]} b6 {[%emt 0:01:58]} 32. Qa4+ {[%emt 0:00:13]} 1-0

[Event "44th Chess Olympiad Women 2022"]
[Site "Chennai"]
[Date "2022.08.07"]
[Round "9.61"]
[White "Psaila, Uranchimeg"]
[Black "Acham, Meritza"]
[Result "0-1"]
[WhiteElo "1395"]
[BlackElo "1397"]
[Annotator "NA RC"]
[PlyCount "86"]
[EventDate "2022.??.??"]
[TimeControl "60"]

1. d4 {[%emt 0:00:05]} Nf6 {[%emt 0:00:08]} 2. Bf4 {[%emt 0:00:17]} c5 {
[%emt 0:00:11]} 3. e3 {[%emt 0:01:34]} e6 {[%emt 0:00:37]} 4. Nd2 {[%emt 0:00:
00]} Qb6 {[%emt 0:00:23]} 5. Nc4 {[%emt 0:05:56]} Qc6 {[%emt 0:02:53]} 6. c3 {
[%emt 0:03:50]} d5 {[%emt 0:01:36]} 7. Ne5 {[%emt 0:02:47]} Qb6 {[%emt 0:00:14]
} 8. Rb1 {[%emt 0:00:33]} Nbd7 {[%emt 0:02:03]} 9. Ngf3 {[%emt 0:02:04]} Be7 {
[%emt 0:00:45]} 10. h3 {[%emt 0:06:12]} O-O {[%emt 0:08:12]} 11. Be2 {[%emt 0:
00:00]} Ne4 {[%emt 0:03:53]} 12. O-O {[%emt 0:05:51]} f6 {[%emt 0:02:58]} 13.
Nxd7 {[%emt 0:00:59]} Bxd7 {[%emt 0:00:15]} 14. Bh2 {[%emt 0:00:52]} Rac8 {
[%emt 0:03:29]} 15. Qb3 {[%emt 0:04:40]} c4 {[%emt 0:01:36]} 16. Qxb6 {[%emt 0:
00:00]} axb6 {[%emt 0:00:17]} 17. Bd1 {[%emt 0:03:44]} Ra8 {[%emt 0:01:55]} 18.
Ra1 {[%emt 0:06:21]} Ba4 {[%emt 0:02:32]} 19. Bxa4 {[%emt 0:04:32]} Rxa4 {
[%emt 0:00:14]} 20. Rfc1 {[%emt 0:01:00]} Rfa8 {[%emt 0:00:30]} 21. a3 {
[%emt 0:06:21]} b5 {[%emt 0:00:20]} 22. Rc2 {[%emt 0:06:05]} b4 {[%emt 0:00:27]
} 23. cxb4 {[%emt 0:00:14]} Bxb4 {[%emt 0:00:20]} 24. Rac1 {[%emt 0:03:16]} Ba5
{[%emt 0:01:36]} 25. g4 {[%emt 0:04:07]} b5 {[%emt 0:00:41]} 26. Kg2 {[%emt 0:
00:00]} b4 {[%emt 0:00:30]} 27. axb4 {[%emt 0:01:19]} Bxb4 {[%emt 0:01:48]} 28.
Ng1 {[%emt 0:04:24]} Ra2 {[%emt 0:01:17]} 29. f3 {[%emt 0:00:54]} Nd2 {[%emt 0:
00:00]} 30. Ne2 {[%emt 0:04:33]} Nb3 {[%emt 0:00:38]} 31. Rf1 {[%emt 0:05:22]}
Ba3 {[%emt 0:00:22]} 32. Rb1 {[%emt 0:04:18]} Bb4 {[%emt 0:00:50]} 33. Nc1 {
[%emt 0:01:32]} Nxc1 {[%emt 0:02:55]} 34. Rbxc1 {[%emt 0:00:17]} Ra1 {[%emt 0:
00:00]} 35. Bg3 {[%emt 0:01:39]} Rxc1 {[%emt 0:00:20]} 36. Rxc1 {[%emt 0:00:06]
} Bd2 {[%emt 0:00:22]} 37. Rc2 {[%emt 0:01:11]} Bxe3 {[%emt 0:00:36]} 38. Bf2 {
[%emt 0:00:16]} Bxf2 {[%emt 0:01:38]} 39. Kxf2 {[%emt 0:00:07]} Rb8 {[%emt 0:
00:00]} 40. Ke3 {[%emt 0:02:40]} e5 {[%emt 0:00:50]} 41. h4 {[%emt 0:06:03]}
Rb3+ {[%emt 0:01:10]} 42. Rc3 {[%emt 0:05:03]} Rxb2 {[%emt 0:01:19]} 43. Ra3 {
[%emt 0:00:34]} Rb3+ {[%emt 0:01:17]} 0-1

[Event "44th Chess Olympiad Women 2022"]
[Site "Chennai"]
[Date "2022.08.07"]
[Round "9.61"]
[White "Thornton, Filipina"]
[Black "Beekhy, Aamirah"]
[Result "1-0"]
[WhiteElo "1661"]
[BlackElo "1373"]
[Annotator "NA"]
[PlyCount "86"]
[EventDate "2022.??.??"]
[TimeControl "60"]

1. d4 {[%emt 0:00:06]} d5 {[%emt 0:00:10]} 2. c4 {[%emt 0:00:05]} e6 {[%emt 0:
00:00]} 3. Nc3 {[%emt 0:00:07]} Nf6 {[%emt 0:00:20]} 4. Bg5 {[%emt 0:00:12]}
Be7 {[%emt 0:00:09]} 5. e3 {[%emt 0:00:06]} O-O {[%emt 0:00:39]} 6. Nf3 {
[%emt 0:00:13]} Nbd7 {[%emt 0:00:18]} 7. Bd3 {[%emt 0:00:13]} b6 {[%emt 0:00:
00]} 8. cxd5 {[%emt 0:03:25]} exd5 {[%emt 0:01:22]} 9. Rc1 {[%emt 0:01:44]} Bb7
{[%emt 0:01:04]} 10. O-O {[%emt 0:03:05]} Rc8 {[%emt 0:00:28]} 11. Bf4 {
[%emt 0:02:06]} c6 {[%emt 0:05:55]} 12. h3 {[%emt 0:03:33]} Re8 {[%emt 0:03:51]
} 13. Re1 {[%emt 0:01:31]} c5 {[%emt 0:09:56]} 14. Nb5 {[%emt 0:01:17]} a6 {
[%emt 0:07:47]} 15. Nd6 {[%emt 0:01:04]} Bxd6 {[%emt 0:00:09]} 16. Bxd6 {
[%emt 0:00:09]} Ne4 {[%emt 0:03:20]} 17. Bh2 {[%emt 0:01:49]} c4 {[%emt 0:00:
00]} 18. Be2 {[%emt 0:03:46]} b5 {[%emt 0:00:55]} 19. Nd2 {[%emt 0:00:54]} Ndf6
{[%emt 0:04:56]} 20. Nxe4 {[%emt 0:03:53]} Nxe4 {[%emt 0:02:54]} 21. f3 {
[%emt 0:02:04]} Nf6 {[%emt 0:02:06]} 22. Qd2 {[%emt 0:01:12]} Rc6 {[%emt 0:00:
00]} 23. Bf1 {[%emt 0:05:57]} Rce6 {[%emt 0:00:53]} 24. a3 {[%emt 0:02:08]} Qe7
{[%emt 0:01:06]} 25. Kf2 {[%emt 0:02:57]} h6 {[%emt 0:04:18]} 26. Be5 {[%emt 0:
00:00]} Nd7 {[%emt 0:06:39]} 27. Bh2 {[%emt 0:01:50]} Nf6 {[%emt 0:01:54]} 28.
Re2 {[%emt 0:00:55]} Bc8 {[%emt 0:05:11]} 29. Rce1 {[%emt 0:04:01]} Kf8 {
[%emt 0:05:01]} 30. Kg1 {[%emt 0:02:20]} Kg8 {[%emt 0:02:57]} 31. Qc2 {[%emt 0:
00:00]} Nh7 {[%emt 0:05:42]} 32. e4 {[%emt 0:05:05]} dxe4 {[%emt 0:03:26]} 33.
fxe4 {[%emt 0:01:16]} Bb7 {[%emt 0:06:12]} 34. d5 {[%emt 0:01:16]} Qc5+ {
[%emt 0:02:46]} 35. Kh1 {[%emt 0:00:52]} R6e7 {[%emt 0:04:26]} 36. d6 {[%emt 0:
00:00]} Re6 {[%emt 0:01:47]} 37. e5 {[%emt 0:07:44]} Nf8 {[%emt 0:00:42]} 38.
Qf5 {[%emt 0:02:47]} Bd5 {[%emt 0:03:06]} 39. Rd2 {[%emt 0:06:52]} Nd7 {
[%emt 0:01:10]} 40. Ree2 {[%emt 0:02:09]} Nxe5 {[%emt 0:01:07]} 41. d7 {
[%emt 0:34:40]} Rd8 {[%emt 0:09:13]} 42. Rxe5 {[%emt 0:00:00]} Rxe5 {[%emt 0:
00:00]} 43. Qxe5 {[%emt 0:00:00]} Rxd7 {[%emt 0:06:11]} 1-0

[Event "44th Chess Olympiad Women 2022"]
[Site "Chennai"]
[Date "2022.08.07"]
[Round "9.62"]
[White "Ahmed, Najla"]
[Black "Eman Sawan"]
[Result "0-1"]
[WhiteElo "1176"]
[BlackElo "1847"]
[Annotator "NA"]
[PlyCount "84"]
[EventDate "2022.??.??"]
[TimeControl "60"]

1. d4 {[%emt 0:00:02]} Nf6 {[%emt 0:00:08]} 2. e3 {[%emt 0:00:04]} g6 {[%emt 0:
00:00]} 3. Bd3 {[%emt 0:00:07]} Bg7 {[%emt 0:00:09]} 4. f4 {[%emt 0:00:33]} d6
{[%emt 0:01:05]} 5. Nf3 {[%emt 0:00:52]} Nbd7 {[%emt 0:00:58]} 6. O-O {[%emt 0:
00:00]} O-O {[%emt 0:00:30]} 7. Nbd2 {[%emt 0:05:42]} Re8 {[%emt 0:01:27]} 8.
f5 {[%emt 0:11:24]} Nb6 {[%emt 0:10:44]} 9. Nh4 {[%emt 0:05:44]} e5 {[%emt 0:
00:00]} 10. dxe5 {[%emt 0:05:49]} dxe5 {[%emt 0:02:25]} 11. e4 {[%emt 0:00:56]}
Nxe4 {[%emt 0:05:52]} 12. Nxe4 {[%emt 0:06:20]} Qd4+ {[%emt 0:24:26]} 13. Kh1 {
[%emt 0:04:01]} Nd5 {[%emt 0:05:06]} 14. Nf3 {[%emt 0:11:08]} Qb6 {[%emt 0:00:
00]} 15. f6 {[%emt 0:07:18]} Nxf6 {[%emt 0:03:56]} 16. Nxf6+ {[%emt 0:00:11]}
Bxf6 {[%emt 0:00:09]} 17. Re1 {[%emt 0:09:16]} Bg7 {[%emt 0:07:14]} 18. Rb1 {
[%emt 0:06:52]} Qa5 {[%emt 0:07:32]} 19. Bc4 {[%emt 0:05:54]} h6 {[%emt 0:00:
00]} 20. Qd5 {[%emt 0:03:47]} Qxd5 {[%emt 0:01:18]} 21. Bxd5 {[%emt 0:00:07]}
c6 {[%emt 0:00:04]} 22. Bc4 {[%emt 0:00:42]} b5 {[%emt 0:00:54]} 23. Bb3 {
[%emt 0:00:59]} Bb7 {[%emt 0:00:36]} 24. a3 {[%emt 0:01:23]} c5 {[%emt 0:00:12]
} 25. c4 {[%emt 0:03:21]} a6 {[%emt 0:00:25]} 26. Be3 {[%emt 0:01:29]} e4 {
[%emt 0:00:25]} 27. Nd2 {[%emt 0:00:49]} Rac8 {[%emt 0:01:42]} 28. Bc2 {
[%emt 0:02:45]} f5 {[%emt 0:00:43]} 29. cxb5 {[%emt 0:00:14]} axb5 {[%emt 0:00:
00]} 30. Nb3 {[%emt 0:01:21]} c4 {[%emt 0:05:58]} 31. Nd4 {[%emt 0:01:11]} Re5
{[%emt 0:00:40]} 32. Rbd1 {[%emt 0:02:13]} g5 {[%emt 0:00:30]} 33. g3 {[%emt 0:
00:00]} Rf8 {[%emt 0:02:15]} 34. Rf1 {[%emt 0:00:11]} f4 {[%emt 0:05:47]} 35.
gxf4 {[%emt 0:00:23]} gxf4 {[%emt 0:00:09]} 36. Bxe4 {[%emt 0:02:06]} Bxe4+ {
[%emt 0:00:34]} 37. Kg1 {[%emt 0:00:11]} fxe3 {[%emt 0:00:41]} 38. Rxf8+ {
[%emt 0:00:19]} Kxf8 {[%emt 0:00:20]} 39. h4 {[%emt 0:01:38]} Kf7 {[%emt 0:00:
00]} 40. Rf1+ {[%emt 0:00:32]} Kg6 {[%emt 0:00:20]} 41. Re1 {[%emt 0:30:09]}
Rh5 {[%emt 0:30:36]} 42. Rxe3 {[%emt 0:00:31]} Bxd4 {[%emt 0:00:05]} 0-1

[Event "44th Chess Olympiad Women 2022"]
[Site "Chennai"]
[Date "2022.08.07"]
[Round "9.62"]
[White "Heba, Assi"]
[Black "Almusawi, Maram"]
[Result "1-0"]
[WhiteElo "1449"]
[BlackElo "1349"]
[Annotator "NA RC"]
[PlyCount "71"]
[EventDate "2022.??.??"]
[TimeControl "60"]

1. d4 {[%emt 0:00:02]} d5 {[%emt 0:00:17]} 2. Nf3 {[%emt 0:00:05]} Nf6 {
[%emt 0:00:18]} 3. e3 {[%emt 0:00:08]} e6 {[%emt 0:00:38]} 4. Bd3 {[%emt 0:00:
00]} c5 {[%emt 0:01:16]} 5. b3 {[%emt 0:00:16]} Nc6 {[%emt 0:00:58]} 6. a3 {
[%emt 0:00:13]} Bd6 {[%emt 0:00:47]} 7. Bb2 {[%emt 0:00:17]} Qe7 {[%emt 0:00:
00]} 8. Ne5 {[%emt 0:01:18]} Qc7 {[%emt 0:03:00]} 9. f4 {[%emt 0:01:07]} a6 {
[%emt 0:02:29]} 10. O-O {[%emt 0:01:06]} O-O {[%emt 0:00:59]} 11. Nd2 {[%emt 0:
00:00]} b5 {[%emt 0:02:50]} 12. c4 {[%emt 0:03:22]} bxc4 {[%emt 0:00:44]} 13.
bxc4 {[%emt 0:00:26]} Rb8 {[%emt 0:01:00]} 14. Rb1 {[%emt 0:02:52]} Bb7 {
[%emt 0:04:24]} 15. cxd5 {[%emt 0:08:16]} Nxd5 {[%emt 0:00:41]} 16. Rf3 {
[%emt 0:02:39]} Qe7 {[%emt 0:01:38]} 17. Rh3 {[%emt 0:03:50]} f5 {[%emt 0:00:
00]} 18. dxc5 {[%emt 0:06:06]} Bxc5 {[%emt 0:00:22]} 19. Qh5 {[%emt 0:02:26]}
Bxe3+ {[%emt 0:01:59]} 20. Kh1 {[%emt 0:03:17]} Nf6 {[%emt 0:03:05]} 21. Nxc6 {
[%emt 0:03:20]} Nxh5 {[%emt 0:10:02]} 22. Nxe7+ {[%emt 0:00:11]} Kf7 {[%emt 0:
00:00]} 23. Rxe3 {[%emt 0:03:45]} Kxe7 {[%emt 0:01:18]} 24. Be5 {[%emt 0:03:04]
} Bxg2+ {[%emt 0:05:46]} 25. Kxg2 {[%emt 0:00:56]} Rbd8 {[%emt 0:04:57]} 26.
Rb7+ {[%emt 0:01:42]} Rd7 {[%emt 0:06:23]} 27. Rxd7+ {[%emt 0:00:26]} Kxd7 {
[%emt 0:00:14]} 28. Bxa6 {[%emt 0:00:29]} Ra8 {[%emt 0:02:45]} 29. Bb5+ {
[%emt 0:00:10]} Ke7 {[%emt 0:00:26]} 30. a4 {[%emt 0:00:15]} Rd8 {[%emt 0:00:
00]} 31. Rd3 {[%emt 0:01:04]} Rc8 {[%emt 0:03:12]} 32. Rd7+ {[%emt 0:00:28]}
Kf8 {[%emt 0:00:11]} 33. Nf3 {[%emt 0:01:48]} h6 {[%emt 0:01:36]} 34. Nd4 {
[%emt 0:01:21]} Kg8 {[%emt 0:04:36]} 35. Nxe6 {[%emt 0:00:46]} Rc2+ {[%emt 0:
00:00]} 36. Kh3 {[%emt 0:00:57]} 1-0

[Event "44th Chess Olympiad Women 2022"]
[Site "Chennai"]
[Date "2022.08.07"]
[Round "9.63"]
[White "Godoy Yolanda"]
[Black "Abigail Karyah"]
[Result "0-1"]
[WhiteElo "1219"]
[BlackElo "1455"]
[Annotator "NA RC"]
[PlyCount "86"]
[EventDate "2022.??.??"]
[TimeControl "60"]

1. e4 {[%emt 0:00:20]} e5 {[%emt 0:00:04]} 2. Nc3 {[%emt 0:00:11]} Nf6 {
[%emt 0:00:14]} 3. d3 {[%emt 0:00:18]} h6 {[%emt 0:00:07]} 4. Nf3 {[%emt 0:00:
00]} Nc6 {[%emt 0:00:08]} 5. a3 {[%emt 0:01:29]} Bc5 {[%emt 0:00:59]} 6. Be3 {
[%emt 0:01:01]} Bb6 {[%emt 0:00:04]} 7. Qe2 {[%emt 0:08:15]} d6 {[%emt 0:00:06]
} 8. Nd5 {[%emt 0:05:14]} Be6 {[%emt 0:01:32]} 9. Nxf6+ {[%emt 0:01:59]} Qxf6 {
[%emt 0:00:05]} 10. c3 {[%emt 0:05:47]} Na5 {[%emt 0:04:10]} 11. b4 {[%emt 0:
00:00]} Nb3 {[%emt 0:04:58]} 12. Rb1 {[%emt 0:00:35]} Bxe3 {[%emt 0:05:53]} 13.
Qxe3 {[%emt 0:02:04]} a5 {[%emt 0:00:09]} 14. Be2 {[%emt 0:02:35]} O-O {
[%emt 0:06:44]} 15. Bd1 {[%emt 0:12:35]} a4 {[%emt 0:00:07]} 16. O-O {[%emt 0:
00:00]} b5 {[%emt 0:04:24]} 17. Nd2 {[%emt 0:08:25]} Nxd2 {[%emt 0:01:23]} 18.
Qxd2 {[%emt 0:00:28]} Rfd8 {[%emt 0:04:31]} 19. Bf3 {[%emt 0:05:32]} c6 {
[%emt 0:00:00]} 20. Rbc1 {[%emt 0:00:55]} d5 {[%emt 0:00:12]} 21. d4 {[%emt 0:
00:00]} dxe4 {[%emt 0:04:05]} 22. Bxe4 {[%emt 0:05:36]} exd4 {[%emt 0:06:45]}
23. Qc2 {[%emt 0:05:03]} dxc3 {[%emt 0:00:23]} 24. Qxc3 {[%emt 0:00:32]} Qxc3 {
[%emt 0:00:18]} 25. Rxc3 {[%emt 0:00:26]} Bc4 {[%emt 0:00:20]} 26. Re1 {
[%emt 0:00:20]} Rac8 {[%emt 0:00:34]} 27. Bf5 {[%emt 0:03:03]} Rc7 {[%emt 0:00:
00]} 28. Rce3 {[%emt 0:03:14]} g6 {[%emt 0:00:51]} 29. Bc2 {[%emt 0:04:08]} c5
{[%emt 0:02:25]} 30. bxc5 {[%emt 0:00:36]} Rxc5 {[%emt 0:00:06]} 31. g4 {
[%emt 0:02:11]} Kg7 {[%emt 0:02:24]} 32. Re7 {[%emt 0:02:35]} Be6 {[%emt 0:00:
00]} 33. Bb1 {[%emt 0:03:42]} Rc3 {[%emt 0:00:47]} 34. R1xe6 {[%emt 0:00:57]}
Rxa3 {[%emt 0:01:26]} 35. Rxg6+ {[%emt 0:00:15]} Kf8 {[%emt 0:00:29]} 36. Re3 {
[%emt 0:06:06]} Rxe3 {[%emt 0:00:22]} 37. fxe3 {[%emt 0:00:02]} fxg6 {[%emt 0:
00:00]} 38. Bxg6 {[%emt 0:00:05]} a3 {[%emt 0:00:25]} 39. e4 {[%emt 0:00:06]}
a2 {[%emt 0:00:10]} 40. e5 {[%emt 0:00:14]} a1=Q+ {[%emt 0:00:13]} 41. Kg2 {
[%emt 0:30:13]} Rd2+ {[%emt 0:30:03]} 42. Kh3 {[%emt 0:00:06]} Qc3+ {[%emt 0:
00:00]} 43. Kh4 {[%emt 0:03:07]} Rxh2# {[%emt 0:00:30]} 0-1